bitfinex-derivatives/quotes_BTCF0:USTF0_20241103
["timestamp","ask_amount","ask_price","bid_price","bid_amount"]
[1730605810062,0.17235402,68455.0,68454.0,0.1197149]
[1730605810357,0.17235402,68455.0,68454.0,0.00319104]
[1730605810565,0.17235402,68455.0,68454.0,0.04666232]
[1730605810861,0.17235402,68455.0,68454.0,0.00319104]
[1730605820367,0.17235402,68455.0,68454.0,0.06766237]
[1730605821173,0.17235402,68455.0,68454.0,0.00319104]
[1730605822374,0.23635734,68455.0,68454.0,0.00319104]
[1730605827471,0.28120501,68455.0,68454.0,0.00319104]
[1730605829168,0.17235402,68455.0,68454.0,0.00319104]
[1730605829677,0.23682535,68455.0,68454.0,0.001]
[1730605837275,0.30083301,68455.0,68454.0,0.001]
[1730605837676,0.66163301,68455.0,68454.0,0.001]
[1730605838577,0.30083301,68455.0,68454.0,0.001]
[1730605838783,0.66163301,68455.0,68454.0,0.001]
[1730605839569,0.70648368,68455.0,68454.0,0.001]
[1730605840183,0.34568368,68455.0,68454.0,0.001]
[1730605840684,0.34568302,68455.0,68454.0,0.001]
[1730605842186,0.34568237,68455.0,68454.0,0.001]
[1730605843581,0.30083221,68455.0,68454.0,0.001]
[1730605844291,0.23682535,68455.0,68454.0,0.001]
[1730605847275,0.23682535,68455.0,68454.0,0.04447128]
[1730605848981,0.23682535,68455.0,68454.0,0.001]
[1730605849375,0.23682535,68455.0,68454.0,0.04447128]
[1730605850588,0.17235402,68455.0,68454.0,0.04447128]
[1730605850885,0.23682535,68455.0,68454.0,0.04447128]
[1730605852382,0.23682535,68455.0,68454.0,0.001]
[1730605859494,0.34568198,68455.0,68454.0,0.001]
[1730605860389,0.39808891,68455.0,68454.0,0.001]
[1730605860693,0.39808903,68455.0,68454.0,0.001]
[1730605861598,0.3336177,68455.0,68454.0,0.001]
[1730605863588,0.2605597,68455.0,68454.0,0.13817934]
[1730605864594,0.2605597,68455.0,68454.0,0.18286371]
[1730605866893,0.3336177,68455.0,68454.0,0.18286371]
[1730605867396,0.17235402,68455.0,68454.0,0.18286371]
[1730605868392,0.001,68455.0,68454.0,0.18286371]
[1730605868602,0.001,68455.0,68454.0,0.6788359]
[1730605868802,0.001,68455.0,68454.0,0.62110371]
[1730605869397,0.001,68455.0,68454.0,0.74350233]
[1730605869595,0.001,68455.0,68454.0,0.62110371]
[1730605870502,0.001,68455.0,68454.0,0.67900997]
[1730605870701,0.3608,68465.0,68454.0,0.67900997]
[1730605870889,0.3608,68465.0,68463.0,0.07305]
[1730605870890,0.09829602,68464.0,68463.0,0.07305]
[1730605871090,0.09829602,68464.0,68463.0,0.13752133]
[1730605871999,0.09929602,68464.0,68463.0,0.13852133]
[1730605872702,0.09929602,68464.0,68463.0,0.07405]
[1730605874300,0.20813154,68464.0,68463.0,0.07405]
[1730605874496,0.10983552,68464.0,68463.0,0.07405]
[1730605874902,0.27260287,68464.0,68463.0,0.07405]
[1730605875203,0.27260287,68464.0,68463.0,0.1186603]
[1730605876305,0.22776157,68464.0,68463.0,0.1186603]
[1730605877404,0.27260287,68464.0,68463.0,0.1186603]
[1730605877709,0.2726023,68464.0,68463.0,0.1186603]
[1730605879506,0.20813097,68464.0,68463.0,0.1186603]
[1730605879894,0.20813097,68464.0,68463.0,0.18313163]
[1730605881499,0.16328991,68464.0,68463.0,0.18313163]
[1730605882109,0.02921926,68464.0,68463.0,0.18313163]
[1730605882299,0.001,68464.0,68463.0,0.62133163]
[1730605883107,0.001,68464.0,68463.0,0.65413163]
[1730605884412,0.001,68464.0,68463.0,0.18313163]
[1730605884903,0.001,68464.0,68463.0,0.1186603]
[1730605888107,0.13852033,68464.0,68463.0,0.1186603]
[1730605888610,0.23681635,68464.0,68463.0,0.07405]
[1730605889100,0.23681635,68464.0,68463.0,0.001]
[1730605889297,0.3456528,68464.0,68463.0,0.001]
[1730605889608,0.3456528,68464.0,68449.0,0.36299134]
[1730605889609,0.50606159,68464.0,68449.0,0.36299134]
[1730605889804,0.17135702,68453.0,68452.0,0.073061]
[1730605890010,0.073064,68451.0,68449.0,0.48034645]
[1730605890216,0.10884127,68450.0,68449.0,0.48034645]
[1730605890809,0.10884127,68450.0,68449.0,0.49434645]
[1730605891308,0.10884618,68450.0,68449.0,0.50834645]
[1730605891616,0.18191018,68450.0,68449.0,0.50834645]
[1730605891802,0.13706449,68450.0,68449.0,0.49434645]
[1730605892001,0.13706449,68450.0,68449.0,0.50834645]
[1730605892307,0.18191062,68450.0,68449.0,0.50834645]
[1730605893209,0.23536051,68450.0,68449.0,0.43528145]
[1730605893513,0.23536051,68450.0,68449.0,0.03019134]
[1730605893514,0.28020777,68450.0,68449.0,0.03019134]
[1730605895112,0.28020777,68450.0,68449.0,0.09466267]
[1730605895615,0.20714377,68450.0,68449.0,0.09466267]
[1730605895913,0.24418578,68450.0,68449.0,0.16772767]
[1730605896107,0.35303353,68450.0,68449.0,0.16772767]
[1730605896811,0.20714377,68450.0,68449.0,0.16772767]
[1730605897310,0.09829602,68450.0,68449.0,0.16772767]
[1730605901810,0.09829602,68450.0,68449.0,0.23994517]
[1730605902011,0.09829602,68450.0,68449.0,0.27057537]
[1730605903318,0.04712295,68450.0,68449.0,0.27057537]
[1730605904417,0.04712295,68450.0,68449.0,0.16772767]
[1730605908713,0.04712295,68450.0,68449.0,0.52852767]
[1730605910024,0.0613,68460.0,68449.0,0.96680767]
[1730605910207,0.073055,68459.0,68458.0,0.073054]
[1730605910617,0.12017795,68459.0,68458.0,0.073054]
[1730605913219,0.12117795,68459.0,68458.0,0.074054]
[1730605914515,0.18517496,68459.0,68458.0,0.074054]
[1730605916426,0.18517496,68459.0,68458.0,0.11778558]
[1730605920025,0.12117795,68459.0,68458.0,0.11778558]
[1730605926926,0.2300176,68459.0,68458.0,0.11778558]
[1730605930531,0.1569626,68459.0,68458.0,0.11778558]
[1730605931237,0.2300166,68459.0,68458.0,0.11778558]
[1730605931533,0.37616136,68459.0,68458.0,0.11778558]
[1730605933232,0.2300166,68459.0,68458.0,0.11778558]
[1730605933427,0.23001578,68459.0,68458.0,0.11778558]
[1730605935042,0.12117695,68459.0,68458.0,0.11778558]
[1730605939033,0.12117695,68459.0,68458.0,0.47858558]
[1730605942040,0.20179524,68459.0,68458.0,0.47858558]
[1730605942244,0.28241353,68459.0,68458.0,0.47858558]
[1730605942437,0.23001541,68459.0,68458.0,0.47858558]
[1730605943541,0.28241324,68459.0,68458.0,0.47858558]
[1730605943743,0.35502658,68459.0,68458.0,0.47858558]
[1730605943939,0.39080236,68459.0,68458.0,0.47858558]
[1730605944143,0.44320019,68459.0,68458.0,0.47858558]
[1730605944345,0.39080236,68459.0,68458.0,0.47858558]
[1730605945543,0.31774836,68459.0,68458.0,0.54305691]
[1730605945848,0.20935897,68459.0,68458.0,0.54305691]
[1730605946145,0.27062541,68459.0,68458.0,0.60752824]
[1730605946450,0.10983846,68459.0,68458.0,0.60752824]
[1730605946648,0.10983846,68459.0,68458.0,0.54305691]
[1730605947140,0.10983548,68459.0,68458.0,0.54305691]
[1730605947343,0.10983548,68459.0,68458.0,0.47858558]
[1730605947344,0.15695843,68459.0,68458.0,0.47858558]
[1730605947535,0.23001243,68459.0,68458.0,0.3618]
[1730605948435,0.23001243,68459.0,68458.0,0.001]
[1730605948636,0.29448376,68459.0,68458.0,0.001]
[1730605948850,0.34688412,68459.0,68458.0,0.001]
[1730605950045,0.18564828,68459.0,68458.0,0.001]
[1730605952941,0.25011961,68459.0,68458.0,0.001]
[1730605953341,0.18564828,68459.0,68458.0,0.001]
[1730605953545,0.25011961,68459.0,68458.0,0.001]
[1730605953748,0.18564828,68459.0,68458.0,0.001]
[1730605954250,0.073055,68458.0,68449.0,0.04565749]
[1730605954550,0.12018695,68450.0,68449.0,0.00219134]
[1730605955449,0.12018695,68450.0,68449.0,0.01619134]
[1730605955658,0.12018695,68450.0,68449.0,0.03019134]
[1730605957350,0.18419252,68450.0,68449.0,0.03019134]
[1730605957558,0.21659252,68450.0,68449.0,0.03019134]
[1730605958263,0.21659252,68450.0,68449.0,0.028]
[1730605959959,0.22413774,68450.0,68449.0,0.028]
[1730605960848,0.22413788,68450.0,68449.0,0.028]
[1730605962155,0.25991969,68450.0,68449.0,0.028]
[1730605962559,0.22413788,68450.0,68449.0,0.028]
[1730605965161,0.19591333,68450.0,68449.0,0.028]
[1730605967476,0.19591333,68450.0,68445.0,0.04346615]
[1730605967773,0.12019095,68446.0,68445.0,0.04346615]
[1730605968468,0.073069,68445.0,68444.0,0.08633628]
[1730605968664,0.12019195,68445.0,68444.0,0.04346615]
[1730605970661,0.12219195,68445.0,68444.0,0.04346615]
[1730605971264,0.12619195,68445.0,68444.0,0.04446615]
[1730605972777,0.12619195,68445.0,68444.0,0.08889807]
[1730605973275,0.12619195,68445.0,68444.0,0.04543192]
[1730605977782,0.12519195,68445.0,68444.0,0.04543192]
[1730605977961,0.12519195,68445.0,68444.0,0.08889807]
[1730605978469,0.12319195,68445.0,68444.0,0.16196807]
[1730605978773,0.12419195,68445.0,68444.0,0.16196807]
[1730605979267,0.18819889,68445.0,68444.0,0.11850192]
[1730605980777,0.18519889,68445.0,68444.0,0.11750192]
[1730605980968,0.18819889,68445.0,68444.0,0.11850192]
[1730605984477,0.18519889,68445.0,68444.0,0.11750192]
[1730605984682,0.18819889,68445.0,68444.0,0.11850192]
[1730605985288,0.2330491,68445.0,68444.0,0.11850192]
[1730605986977,0.18819889,68445.0,68444.0,0.11850192]
[1730605987384,0.12419195,68445.0,68444.0,0.11850192]
[1730605989176,0.05112295,68445.0,68444.0,0.11850192]
[1730605989386,0.05112295,68445.0,68444.0,0.19094551]
[1730605990377,0.05112295,68445.0,68444.0,0.2940339]
[1730605990586,0.04812295,68445.0,68444.0,0.2930339]
[1730605990786,0.04812295,68445.0,68444.0,0.3070339]
[1730605990986,0.12119195,68445.0,68444.0,0.3070339]
[1730605991386,0.12019195,68445.0,68444.0,0.3210339]
[1730605991687,0.3608,68454.0,68444.0,0.3210339]
[1730605991688,0.073061,68453.0,68452.0,0.073062]
[1730605991893,0.073061,68453.0,68452.0,0.13121594]
[1730605992077,0.12018395,68453.0,68452.0,0.073062]
[1730605992477,0.12018395,68453.0,68452.0,0.13120109]
[1730605992679,0.12018395,68453.0,68452.0,0.073062]
[1730605994080,0.04712295,68453.0,68449.0,0.06447133]
[1730605994279,0.12018695,68450.0,68449.0,0.073064]
[1730605995278,0.12018695,68450.0,68449.0,0.18212713]
[1730605997079,0.12418695,68450.0,68449.0,0.18212713]
[1730605997491,0.12418695,68450.0,68449.0,0.1176558]
[1730605997884,0.12118695,68450.0,68449.0,0.1166558]
[1730605998093,0.12318695,68450.0,68449.0,0.1176558]
[1730605998288,0.12418695,68450.0,68449.0,0.1176558]
[1730605998596,0.04812295,68450.0,68449.0,0.18112713]
[1730605998806,0.12418695,68450.0,68449.0,0.13853533]
[1730605999783,0.12418695,68450.0,68449.0,0.18215397]
[1730606000589,0.12418695,68450.0,68449.0,0.13853533]
[1730606002587,0.18818875,68450.0,68449.0,0.13853533]
[1730606003393,0.1524097,68450.0,68449.0,0.13853533]
[1730606005502,0.18818866,68450.0,68449.0,0.13853533]
[1730606009505,0.12418695,68450.0,68449.0,0.13853533]
[1730606011101,0.12418695,68450.0,68449.0,0.49933533]
[1730606012302,0.12418695,68450.0,68449.0,0.13853533]
[1730606017511,0.1524098,68450.0,68449.0,0.13853533]
[1730606017714,0.18818902,68450.0,68449.0,0.13853533]
[1730606017915,0.1524098,68450.0,68449.0,0.13853533]
[1730606020517,0.18818848,68450.0,68449.0,0.13853533]
[1730606021507,0.18818848,68450.0,68449.0,0.49933533]
[1730606023608,0.18818848,68450.0,68449.0,0.434864]
[1730606024109,0.18818875,68450.0,68449.0,0.434864]
[1730606024619,0.12418695,68450.0,68449.0,0.5374752]
[1730606025323,0.12418695,68450.0,68449.0,0.1766752]
[1730606025517,0.12418695,68450.0,68449.0,0.5374752]
[1730606027421,0.12418695,68450.0,68449.0,0.1766752]
[1730606027724,0.12418695,68450.0,68449.0,0.5374752]
[1730606029314,0.15548695,68450.0,68449.0,0.5374752]
[1730606033323,0.15548695,68450.0,68449.0,0.434864]
[1730606033825,0.26433572,68450.0,68449.0,0.434864]
[1730606035316,0.15548695,68450.0,68449.0,0.074064]
[1730606035631,0.15548695,68450.0,68449.0,0.434864]
[1730606036723,0.15548695,68450.0,68449.0,0.074064]
[1730606036923,0.15548695,68450.0,68449.0,0.434864]
[1730606037425,0.15548695,68450.0,68449.0,0.074064]
[1730606037821,0.15548695,68450.0,68449.0,0.434864]
[1730606038928,0.26433572,68450.0,68449.0,0.434864]
[1730606039223,0.26433572,68450.0,68449.0,0.3618]
[1730606040327,0.15548695,68450.0,68449.0,0.3618]
[1730606041835,0.21995828,68450.0,68449.0,0.3618]
[1730606042129,0.15548695,68450.0,68449.0,0.3618]
[1730606043920,0.15548695,68450.0,68449.0,0.53753805]
[1730606045931,0.15548695,68450.0,68449.0,0.43470184]
[1730606046834,0.05112295,68450.0,68449.0,0.57223817]
[1730606047327,0.12418695,68450.0,68449.0,0.49933633]
[1730606048527,0.05112295,68450.0,68449.0,0.49933633]
[1730606054635,0.12418695,68450.0,68449.0,0.49933633]
[1730606055441,0.23303625,68450.0,68449.0,0.49933633]
[1730606056844,0.23303625,68450.0,68449.0,0.13853633]
[1730606062450,0.12418695,68450.0,68449.0,0.24134346]
[1730606065060,0.05112295,68450.0,68449.0,0.24134346]
[1730606065557,0.12418695,68450.0,68449.0,0.24134346]
[1730606065958,0.12418695,68450.0,68449.0,0.24130374]
[1730606070556,0.18818692,68450.0,68449.0,0.13853633]
[1730606077464,0.12418695,68450.0,68449.0,0.31371081]
[1730606079566,0.12418695,68450.0,68449.0,0.17617448]
[1730606079871,0.12418695,68450.0,68449.0,0.001]
[1730606080073,0.15688695,68450.0,68449.0,0.001]
[1730606092579,0.18511098,68450.0,68449.0,0.001]
[1730606094967,0.22089165,68450.0,68449.0,0.001]
[1730606095483,0.22089251,68450.0,68449.0,0.001]
[1730606096277,0.22089277,68450.0,68449.0,0.001]
[1730606096473,0.2657422,68450.0,68449.0,0.001]
[1730606096681,0.22089277,68450.0,68449.0,0.001]
[1730606098371,0.26574221,68450.0,68449.0,0.001]
[1730606099171,0.22089277,68450.0,68449.0,0.001]
[1730606100282,0.22089277,68450.0,68449.0,0.07389155]
[1730606100283,0.15688695,68450.0,68449.0,0.07389155]
[1730606101187,0.15688695,68450.0,68449.0,0.17636141]
[1730606102384,0.15688695,68450.0,68449.0,0.07389155]
[1730606102690,0.15688695,68450.0,68449.0,0.17634395]
[1730606107294,0.18511147,68450.0,68449.0,0.001]
[1730606115495,0.15688695,68450.0,68449.0,0.10345707]
[1730606116495,0.15688695,68450.0,68449.0,0.10347969]
[1730606121892,0.22135828,68450.0,68449.0,0.001]
[1730606122088,0.58215828,68450.0,68449.0,0.001]
[1730606122295,0.51768695,68450.0,68449.0,0.05921878]
[1730606122596,0.51768695,68450.0,68449.0,0.13853633]
[1730606122597,0.42880894,68450.0,68449.0,0.13853633]
[1730606122784,0.39302703,68450.0,68449.0,0.13853633]
[1730606122989,0.42880855,68450.0,68449.0,0.13853633]
[1730606123399,0.06800855,68450.0,68449.0,0.13853633]
[1730606123596,0.06800855,68450.0,68449.0,0.49933633]
[1730606123597,0.03222703,68450.0,68449.0,0.49933633]
[1730606129994,0.03222275,68450.0,68449.0,0.49933633]
[1730606130395,0.004,68450.0,68449.0,0.49933633]
[1730606134003,0.004,68450.0,68449.0,0.13853633]
[1730606134298,0.004,68450.0,68449.0,0.49933633]
[1730606136897,0.004,68450.0,68449.0,0.13853633]
[1730606137104,0.004,68450.0,68449.0,0.49933633]
[1730606138211,0.05112295,68450.0,68449.0,0.49933633]
[1730606139902,0.004,68450.0,68449.0,0.49933633]
[1730606141611,0.004,68450.0,68449.0,0.5721285]
[1730606142112,0.004,68450.0,68449.0,0.67440986]
[1730606142599,0.004,68450.0,68449.0,0.31360986]
[1730606142807,0.004,68450.0,68449.0,0.67440986]
[1730606145613,0.004,68450.0,68449.0,0.49933633]
[1730606145815,0.03222258,68450.0,68449.0,0.49933633]
[1730606152613,0.004,68450.0,68449.0,0.24090417]
[1730606152810,0.004,68450.0,68449.0,0.60170417]
[1730606153321,0.066,68458.0,68449.0,1.37964094]
[1730606153628,0.066,68458.0,68457.0,0.59867107]
[1730606153815,0.066,68458.0,68457.0,0.70103708]
[1730606154518,0.069,68458.0,68457.0,0.76550841]
[1730606155916,0.0363,68458.0,68457.0,0.76550841]
[1730606156228,0.0363,68458.0,68457.0,0.76650841]
[1730606156229,0.0333,68458.0,68457.0,0.76650841]
[1730606156613,0.0651,68467.0,68457.0,0.76650841]
[1730606156817,0.04712295,68462.0,68457.0,0.70203708]
[1730606157019,0.04712295,68462.0,68458.0,0.3608]
[1730606157214,0.0314,68466.0,68465.0,0.073048]
[1730606157418,0.0977,68476.0,68465.0,0.433848]
[1730606157620,0.0977,68476.0,68475.0,0.073037]
[1730606158129,0.14482295,68476.0,68475.0,0.073037]
[1730606158715,0.14482295,68476.0,68475.0,0.13750833]
[1730606159134,0.20929428,68476.0,68473.0,0.05820264]
[1730606159314,0.18463228,68474.0,68468.0,0.07277679]
[1730606159522,0.073047,68466.0,68465.0,0.001]
[1730606159724,0.18464128,68466.0,68465.0,0.001]
[1730606160231,0.073049,68464.0,68463.0,0.08746183]
[1730606160529,0.12017195,68464.0,68463.0,0.08746183]
[1730606161525,0.073051,68462.0,68461.0,0.00219078]
[1730606161731,0.18464528,68462.0,68461.0,0.00219078]
[1730606163527,0.18464528,68462.0,68461.0,0.00319078]
[1730606163725,0.18464528,68462.0,68461.0,0.04686455]
[1730606164837,0.18464528,68462.0,68461.0,0.04467377]
[1730606166435,0.24911661,68462.0,68461.0,0.001]
[1730606167531,0.18464528,68462.0,68461.0,0.001]
[1730606173731,0.24886124,68462.0,68461.0,0.001]
[1730606175840,0.18438991,68462.0,68461.0,0.001]
[1730606176638,0.18440598,68462.0,68461.0,0.001]
[1730606179042,0.18440598,68462.0,68461.0,0.074052]
[1730606179335,0.11135498,68462.0,68461.0,0.074052]
[1730606179536,0.0755773,68462.0,68461.0,0.11683681]
[1730606179738,0.1486283,68462.0,68461.0,0.11683681]
[1730606181333,0.14868827,68462.0,68461.0,0.11683681]
[1730606182941,0.2131596,68462.0,68461.0,0.074052]
[1730606183139,0.2131596,68462.0,68461.0,0.001]
[1730606183441,0.18464528,68462.0,68461.0,0.001]
[1730606184231,0.18464528,68462.0,68461.0,0.074052]
[1730606186141,0.18464528,68462.0,68461.0,0.001]
[1730606191540,0.21286583,68462.0,68461.0,0.001]
[1730606193245,0.1483945,68462.0,68461.0,0.001]
[1730606194651,0.1483945,68462.0,68461.0,0.074052]
[1730606195150,0.14839453,68462.0,68461.0,0.074052]
[1730606197149,0.21286586,68462.0,68461.0,0.074052]
[1730606198452,0.18464528,68462.0,68461.0,0.074052]
[1730606199257,0.18464528,68462.0,68461.0,0.001]
[1730606206543,0.22901628,68462.0,68461.0,0.001]
[1730606208458,0.22901628,68462.0,68461.0,0.074052]
[1730606208957,0.15596528,68462.0,68461.0,0.074052]
[1730606210557,0.11112117,68462.0,68461.0,0.074052]
[1730606210754,0.18417217,68462.0,68461.0,0.074052]
[1730606213655,0.12017395,68462.0,68461.0,0.074052]
[1730606217965,0.073051,68462.0,68461.0,0.074052]
[1730606222875,0.12017395,68462.0,68461.0,0.074052]
[1730606225373,0.12017395,68462.0,68461.0,0.13235912]
[1730606225670,0.12017395,68462.0,68461.0,0.05930712]
[1730606228173,0.48097395,68462.0,68461.0,0.05930712]
[1730606228766,0.48097395,68462.0,68461.0,0.001]
[1730606229168,0.52503387,68462.0,68461.0,0.001]
[1730606233774,0.63388181,68462.0,68461.0,0.001]
[1730606233973,0.69835314,68462.0,68461.0,0.001]
[1730606234685,0.65350672,68462.0,68461.0,0.001]
[1730606236185,0.5895052,68462.0,68461.0,0.001]
[1730606243608,0.6941452,68462.0,68461.0,0.001]
[1730606244507,0.94917441,68462.0,68461.0,0.001]
[1730606245711,0.80300179,68462.0,68461.0,0.001]
[1730606247304,0.94917441,68462.0,68461.0,0.001]
[1730606248615,0.80300179,68462.0,68461.0,0.001]
[1730606250015,0.94917441,68462.0,68461.0,0.001]
[1730606250707,0.80300179,68462.0,68461.0,0.001]
[1730606251519,0.6941452,68462.0,68461.0,0.001]
[1730606256213,0.72237021,68462.0,68461.0,0.001]
[1730606256728,0.5895052,68462.0,68461.0,0.001]
[1730606256924,0.6941452,68462.0,68461.0,0.001]
[1730606258527,0.72237076,68462.0,68461.0,0.001]
[1730606261729,1.08317076,68462.0,68461.0,0.001]
[1730606266626,1.2162108,68462.0,68461.0,0.001]
[1730606268732,1.37700343,68462.0,68461.0,0.001]
[1730606268935,1.32459588,68462.0,68461.0,0.001]
[1730606269130,1.16380325,68462.0,68461.0,0.001]
[1730606270528,1.37700332,68462.0,68461.0,0.001]
[1730606271932,1.21621069,68462.0,68461.0,0.001]
[1730606272641,1.05916325,68462.0,68461.0,0.001]
[1730606272938,0.63389124,68462.0,68461.0,0.001]
[1730606273139,0.78008106,68462.0,68461.0,0.001]
[1730606273638,0.63389124,68462.0,68461.0,0.001]
[1730606274532,0.55325912,68462.0,68461.0,0.001]
[1730606274726,0.52503387,68462.0,68461.0,0.001]
[1730606279232,0.5895052,68462.0,68461.0,0.001]
[1730606281640,0.69835233,68462.0,68461.0,0.001]
[1730606283148,0.65350625,68462.0,68461.0,0.001]
[1730606283553,0.69835285,68462.0,68461.0,0.001]
[1730606284141,0.69835358,68462.0,68461.0,0.001]
[1730606284450,0.65350698,68462.0,68461.0,0.001]
[1730606284839,0.29270698,68462.0,68461.0,0.001]
[1730606285040,0.65350698,68462.0,68461.0,0.001]
[1730606285950,0.69835358,68462.0,68461.0,0.001]
[1730606286950,0.073056,68457.0,68456.0,0.03]
[1730606287141,0.29349866,68457.0,68456.0,0.03]
[1730606287342,0.43948288,68457.0,68456.0,0.03]
[1730606288354,0.43948288,68457.0,68456.0,0.031]
[1730606288355,0.44048288,68457.0,68456.0,0.031]
[1730606288747,0.18565028,68457.0,68456.0,0.031]
[1730606289051,0.19065028,68457.0,68456.0,0.031]
[1730606291049,0.19065028,68457.0,68456.0,0.001]
[1730606291251,0.25512161,68457.0,68456.0,0.001]
[1730606291458,0.12018595,68451.0,68448.0,0.04375174]
[1730606291651,0.12019095,68446.0,68445.0,0.0662]
[1730606291855,0.18466228,68446.0,68445.0,0.0662]
[1730606292556,0.073078,68437.0,68436.0,0.0333]
[1730606292761,0.56282066,68437.0,68436.0,0.0333]
[1730606292950,0.60994361,68437.0,68436.0,0.0333]
[1730606293456,0.60994361,68437.0,68429.0,0.3608]
[1730606293457,0.073085,68430.0,68429.0,0.3608]
[1730606293654,0.18467928,68430.0,68429.0,0.3608]
[1730606294062,0.47239428,68430.0,68428.0,0.0311]
[1730606294360,0.12020895,68429.0,68428.0,0.0311]
[1730606295653,0.13420895,68429.0,68428.0,0.0321]
[1730606296543,0.13820895,68429.0,68428.0,0.0321]
[1730606296748,0.1811521,68429.0,68428.0,0.0321]
[1730606303752,0.1811521,68429.0,68428.0,0.001]
[1730606304753,0.24562343,68429.0,68428.0,0.001]
[1730606305473,0.1811521,68429.0,68428.0,0.001]
[1730606309668,0.2853921,68429.0,68428.0,0.001]
[1730606313679,0.34986343,68429.0,68428.0,0.001]
[1730606313971,0.2853921,68429.0,68428.0,0.001]
[1730606317380,0.073093,68423.0,68422.0,0.0305]
[1730606317571,0.60995861,68423.0,68422.0,0.0305]
[1730606318677,0.54648728,68423.0,68422.0,0.0575]
[1730606318878,0.54748728,68423.0,68422.0,0.0575]
[1730606321079,0.61195861,68423.0,68422.0,0.0575]
[1730606322189,0.54748728,68423.0,68422.0,0.0575]
[1730606322981,0.18668728,68423.0,68422.0,0.0575]
[1730606324485,0.25115861,68423.0,68422.0,0.0575]
[1730606328292,0.61195861,68423.0,68422.0,0.0575]
[1730606328783,0.25115861,68423.0,68422.0,0.0575]
[1730606328981,0.61195861,68423.0,68422.0,0.0575]
[1730606334690,0.61195861,68423.0,68422.0,0.027]
[1730606337710,0.25115861,68423.0,68422.0,0.027]
[1730606337916,0.61195861,68423.0,68422.0,0.027]
[1730606338210,0.25115861,68423.0,68422.0,0.027]
[1730606338401,0.61195861,68423.0,68422.0,0.027]
[1730606340610,0.54748728,68423.0,68422.0,0.027]
[1730606341013,0.61195861,68423.0,68422.0,0.027]
[1730606345315,0.54748728,68423.0,68422.0,0.027]
[1730606347613,0.65156728,68423.0,68422.0,0.027]
[1730606348407,0.54748728,68423.0,68422.0,0.027]
[1730606348616,0.65156728,68423.0,68422.0,0.027]
[1730606351219,0.65156728,68423.0,68422.0,0.09984999]
[1730606351419,0.65156728,68423.0,68422.0,0.027]
[1730606351717,0.65156728,68423.0,68422.0,0.09984999]
[1730606352316,0.65156728,68423.0,68422.0,0.027]
[1730606352914,0.71603861,68423.0,68422.0,0.027]
[1730606354521,0.35523861,68423.0,68422.0,0.027]
[1730606355813,0.35503861,68423.0,68422.0,0.027]
[1730606360627,0.29056728,68423.0,68422.0,0.027]
[1730606360815,0.35503861,68423.0,68422.0,0.027]
[1730606362633,0.29056728,68423.0,68422.0,0.027]
[1730606368331,0.35503861,68423.0,68422.0,0.027]
[1730606368734,0.29056728,68423.0,68422.0,0.027]
[1730606371119,0.35503861,68423.0,68422.0,0.027]
[1730606372728,0.29056728,68423.0,68422.0,0.027]
[1730606378726,0.35503861,68423.0,68422.0,0.027]
[1730606386046,0.35503861,68423.0,68422.0,0.09984999]
[1730606386240,0.35503861,68423.0,68422.0,0.027]
[1730606387146,0.29056728,68423.0,68422.0,0.027]
[1730606388434,0.29032728,68423.0,68422.0,0.027]
[1730606388636,0.35479861,68423.0,68422.0,0.027]
[1730606400751,0.30767566,68423.0,68422.0,0.027]
[1730606401850,0.30767566,68423.0,68417.0,0.0307]
[1730606402056,0.073101,68415.0,68409.0,0.08741999]
[1730606402237,0.073103,68413.0,68408.0,0.08741999]
[1730606402442,0.073103,68413.0,68407.0,0.15191999]
[1730606402946,0.073103,68413.0,68408.0,0.08741999]
[1730606403143,0.06447133,68415.0,68408.0,0.08741999]
[1730606403341,0.073103,68413.0,68408.0,0.08741999]
[1730606403546,0.073103,68413.0,68407.0,0.0645]
[1730606404143,0.073103,68413.0,68412.0,0.3608]
[1730606404350,0.073103,68413.0,68407.0,0.0645]
[1730606404351,0.073109,68408.0,68407.0,0.0321]
[1730606404553,0.59338266,68408.0,68406.0,0.05348929]
[1730606404743,0.59338266,68408.0,68397.0,0.0301]
[1730606404744,0.12894266,68407.0,68397.0,0.0301]
[1730606405050,0.073119,68398.0,68397.0,0.0301]
[1730606405440,0.13759033,68398.0,68397.0,0.0301]
[1730606405653,0.073119,68398.0,68397.0,0.0301]
[1730606406151,0.12024195,68398.0,68397.0,0.0301]
[1730606406351,0.12124195,68398.0,68397.0,0.0301]
[1730606407947,0.12224195,68398.0,68397.0,0.0301]
[1730606408554,0.12124195,68398.0,68397.0,0.0301]
[1730606408741,0.18671328,68398.0,68397.0,0.0301]
[1730606408942,0.18671328,68398.0,68397.0,0.0351]
[1730606410644,0.18671328,68398.0,68397.0,0.005]
[1730606410846,0.28939328,68398.0,68397.0,0.005]
[1730606411050,0.28939328,68398.0,68392.0,0.3608]
[1730606411051,0.30239328,68398.0,68392.0,0.3608]
[1730606411249,0.24919061,68393.0,68392.0,0.3608]
[1730606411462,0.07313,68388.0,68387.0,0.0307]
[1730606411757,0.07313,68388.0,68379.0,0.0605]
[1730606411758,0.073133,68386.0,68379.0,0.0605]
[1730606411954,0.04712295,68383.0,68380.0,0.0307]
[1730606412154,0.06447133,68381.0,68380.0,0.0307]
[1730606412352,0.06447133,68381.0,68380.0,0.103839]
[1730606413356,0.06447133,68381.0,68380.0,0.0307]
[1730606414864,0.06547133,68381.0,68380.0,0.0357]
[1730606415062,0.06547133,68381.0,68380.0,0.108839]
[1730606415559,0.13860933,68381.0,68380.0,0.0357]
[1730606417561,0.13860933,68381.0,68380.0,0.108839]
[1730606417562,0.06547133,68381.0,68380.0,0.108839]
[1730606417858,0.001,68383.0,68380.0,0.47442]
[1730606418051,0.10754802,68391.0,68380.0,0.47442]
[1730606418052,0.06447133,68391.0,68382.0,0.06447133]
[1730606418253,0.01023,68400.0,68386.0,0.073132]
[1730606418254,0.06447133,68387.0,68386.0,0.073132]
[1730606418664,0.06447133,68387.0,68386.0,0.511812]
[1730606419260,0.06447133,68387.0,68386.0,0.073132]
[1730606421160,0.06547133,68387.0,68386.0,0.074132]
[1730606421362,0.13860233,68387.0,68386.0,0.1178327]
[1730606421561,0.13960233,68387.0,68386.0,0.1248327]
[1730606421767,0.13960233,68387.0,68386.0,0.081132]